{"text_format":"3","workbook":"xlsx","n_sheets":2,"sheets":["Kezdés","Ünnepi költségvetés-tervező"],"not_rendered":{"defined_names":1},"read":"whole","date_system":"1900"}

{"sheet":"Kezdés","index":0,"n_rows":4,"n_cols":2,"rows_kept":4}
[null,"A sablon használata"]
[null,"Ezzel a nyaralási költségvetés-tervezővel nyomon követheti kiadásait."]
[null,"Első lépésként adja meg a Költségvetést és a Tényleges költségeket minden kategóriatáblán."]
[null,"A nyaralási költségvetést, a ténylegesen elköltött teljes összeget és a különbözetet automatikusan kiszámítja a sablon."]

{"sheet":"Ünnepi költségvetés-tervező","index":1,"n_rows":36,"n_cols":14,"rows_kept":36,"merged":[[0,2,5,7],[2,10,2,11],[8,2,8,5],[8,10,8,13],[18,2,18,5],[18,10,18,13],[29,2,29,5],[29,10,29,13]]}
[null,null,"Ünnepi költségvetés-tervező"]
[]
[{"$nulls":10},"ÜNNEPI KÖLTSÉGVETÉS",null,null,{"$f":"SUM(Ajándék[Költségvetés],Csomagolás[Költségvetés],(Utazás[Költségvetés],(Étkezés[Költségvetés],(Reprezentáció[Költségvetés],Egyéb[Költségvetés]))))","v":{"v":750,"d":"750.00 Ft"}}]
[{"$nulls":10},"Ténylegesen elköltve",null,null,{"$f":"SUM((Ajándék[Tényleges],(Csomagolás[Tényleges],(Utazás[Tényleges],(Étkezés[Tényleges],(Reprezentáció[Tényleges],(Egyéb[Tényleges])))))))","v":{"v":820,"d":"820.00 Ft"}}]
[]
[{"$nulls":10},"KÜLÖNBÖZET (költségvetés fölött/alatt)",null,null,{"$f":"SUM(N3-N4)","v":{"v":-70,"d":"-70.00 Ft"}}]
[]
[]
[null,null,"AJÁNDÉKOK",{"$nulls":7},"NYARALÁS – ÉTKEZÉSEK"]
[null,null,"Tétel","Költségvetés","Tényleges","Különbözet",{"$nulls":4},"Tétel","Költségvetés","Tényleges","Különbözet"]
[null,null,"Család",{"v":500,"d":"500.00 Ft"},{"v":495,"d":"495.00 Ft"},{"$f":"Ajándék[[#This Row],[Költségvetés]]-Ajándék[[#This Row],[Tényleges]]","v":{"v":5,"d":"5.00 Ft"}},{"$nulls":4},"Bevásárlás",null,null,{"$f":"Étkezés[[#This Row],[Költségvetés]]-Étkezés[[#This Row],[Tényleges]]","v":{"v":0,"d":"0.00 Ft"}}]
[null,null,"Barátok",{"v":250,"d":"250.00 Ft"},{"v":325,"d":"325.00 Ft"},{"$f":"Ajándék[[#This Row],[Költségvetés]]-Ajándék[[#This Row],[Tényleges]]","v":{"v":-75,"d":"-75.00 Ft"}},{"$nulls":4},"Italok",null,null,{"$f":"Étkezés[[#This Row],[Költségvetés]]-Étkezés[[#This Row],[Tényleges]]","v":{"v":0,"d":"0.00 Ft"}}]
[null,null,"Munkatársak",null,null,{"$f":"Ajándék[[#This Row],[Költségvetés]]-Ajándék[[#This Row],[Tényleges]]","v":{"v":0,"d":"0.00 Ft"}},{"$nulls":4},"Dekoráció",null,null,{"$f":"Étkezés[[#This Row],[Költségvetés]]-Étkezés[[#This Row],[Tényleges]]","v":{"v":0,"d":"0.00 Ft"}}]
[null,null,"Tanárok, dadák, gyermekfelügyelők stb.",null,null,{"$f":"Ajándék[[#This Row],[Költségvetés]]-Ajándék[[#This Row],[Tényleges]]","v":{"v":0,"d":"0.00 Ft"}},{"$nulls":4},"Egyéb (új sor felvételéhez nyomja le a Tab billentyűt e sor utolsó oszlopában)",null,null,{"$f":"Étkezés[[#This Row],[Költségvetés]]-Étkezés[[#This Row],[Tényleges]]","v":{"v":0,"d":"0.00 Ft"}}]
[null,null,"Jótékonysági adományok",null,null,{"$f":"Ajándék[[#This Row],[Költségvetés]]-Ajándék[[#This Row],[Tényleges]]","v":{"v":0,"d":"0.00 Ft"}},{"$nulls":7},{"$f":"Étkezés[[#This Row],[Költségvetés]]-Étkezés[[#This Row],[Tényleges]]","v":{"v":0,"d":"0.00 Ft"}}]
[null,null,"Egyéb (új sor felvételéhez nyomja le a Tab billentyűt e sor utolsó oszlopában)",null,null,{"$f":"Ajándék[[#This Row],[Költségvetés]]-Ajándék[[#This Row],[Tényleges]]","v":{"v":0,"d":"0.00 Ft"}}]
[null,null,"Összeg",{"$f":"SUBTOTAL(109,Ajándék[Költségvetés])","v":{"v":750,"d":"750.00 Ft"}},{"$f":"SUBTOTAL(109,Ajándék[Tényleges])","v":{"v":820,"d":"820.00 Ft"}},{"$f":"SUBTOTAL(109,Ajándék[Különbözet])","v":{"v":-70,"d":"-70.00 Ft"}},{"$nulls":4},"Összeg",{"$f":"SUBTOTAL(109,Étkezés[Költségvetés])","v":{"v":0,"d":"0.00 Ft"}},{"$f":"SUBTOTAL(109,Étkezés[Tényleges])","v":{"v":0,"d":"0.00 Ft"}},{"$f":"SUBTOTAL(109,Étkezés[Különbözet])","v":{"v":0,"d":"0.00 Ft"}}]
[]
[null,null,"CSOMAGOLÁS",{"$nulls":7},"SZÓRAKOZÁS"]
[null,null,"Tétel","Költségvetés","Tényleges","Különbözet",{"$nulls":4},"Tétel","Költségvetés","Tényleges","Különbözet"]
[null,null,"Ajándék csomagolása",null,null,{"$f":"Csomagolás[[#This Row],[Költségvetés]]-Csomagolás[[#This Row],[Tényleges]]","v":{"v":0,"d":"0.00 Ft"}},{"$nulls":4},"Segítők az ünnepségen (csapos, élelmiszerszállító, takarítók stb.)",null,null,{"$f":"Reprezentáció[[#This Row],[Költségvetés]]-Reprezentáció[[#This Row],[Tényleges]]","v":{"v":0,"d":"0.00 Ft"}}]
[null,null,"Címkék",null,null,{"$f":"Csomagolás[[#This Row],[Költségvetés]]-Csomagolás[[#This Row],[Tényleges]]","v":{"v":0,"d":"0.00 Ft"}},{"$nulls":4},"Dekoráció",null,null,{"$f":"Reprezentáció[[#This Row],[Költségvetés]]-Reprezentáció[[#This Row],[Tényleges]]","v":{"v":0,"d":"0.00 Ft"}}]
[null,null,"Kellékek (szalag, ragasztószalag stb.)",null,null,{"$f":"Csomagolás[[#This Row],[Költségvetés]]-Csomagolás[[#This Row],[Tényleges]]","v":{"v":0,"d":"0.00 Ft"}},{"$nulls":4},"Étel és ital",null,null,{"$f":"Reprezentáció[[#This Row],[Költségvetés]]-Reprezentáció[[#This Row],[Tényleges]]","v":{"v":0,"d":"0.00 Ft"}}]
[null,null,"Dobozok",null,null,{"$f":"Csomagolás[[#This Row],[Költségvetés]]-Csomagolás[[#This Row],[Tényleges]]","v":{"v":0,"d":"0.00 Ft"}},{"$nulls":4},"Ruhanemű",null,null,{"$f":"Reprezentáció[[#This Row],[Költségvetés]]-Reprezentáció[[#This Row],[Tényleges]]","v":{"v":0,"d":"0.00 Ft"}}]
[null,null,"Postaköltség",null,null,{"$f":"Csomagolás[[#This Row],[Költségvetés]]-Csomagolás[[#This Row],[Tényleges]]","v":{"v":0,"d":"0.00 Ft"}},{"$nulls":4},"Jegyek",null,null,{"$f":"Reprezentáció[[#This Row],[Költségvetés]]-Reprezentáció[[#This Row],[Tényleges]]","v":{"v":0,"d":"0.00 Ft"}}]
[null,null,"Egyéb (új sor felvételéhez nyomja le a Tab billentyűt e sor utolsó oszlopában)",null,null,{"$f":"Csomagolás[[#This Row],[Költségvetés]]-Csomagolás[[#This Row],[Tényleges]]","v":{"v":0,"d":"0.00 Ft"}},{"$nulls":4},"Vacsora étteremben",null,null,{"$f":"Reprezentáció[[#This Row],[Költségvetés]]-Reprezentáció[[#This Row],[Tényleges]]","v":{"v":0,"d":"0.00 Ft"}}]
[{"$nulls":10},"Egyéb (új sor felvételéhez nyomja le a Tab billentyűt e sor utolsó oszlopában)",null,null,{"$f":"Reprezentáció[[#This Row],[Költségvetés]]-Reprezentáció[[#This Row],[Tényleges]]","v":{"v":0,"d":"0.00 Ft"}}]
[null,null,"Összeg",{"$f":"SUBTOTAL(109,Csomagolás[Költségvetés])","v":{"v":0,"d":"0.00 Ft"}},{"$f":"SUBTOTAL(109,Csomagolás[Tényleges])","v":{"v":0,"d":"0.00 Ft"}},{"$f":"SUBTOTAL(109,Csomagolás[Különbözet])","v":{"v":0,"d":"0.00 Ft"}},{"$nulls":4},"Összeg",{"$f":"SUBTOTAL(109,Reprezentáció[Költségvetés])","v":{"v":0,"d":"0.00 Ft"}},{"$f":"SUBTOTAL(109,Reprezentáció[Tényleges])","v":{"v":0,"d":"0.00 Ft"}},{"$f":"SUBTOTAL(109,Reprezentáció[Különbözet])","v":{"v":0,"d":"0.00 Ft"}}]
[]
[null,null,"UTAZÁS",{"$nulls":7},"EGYÉB"]
[null,null,"Tétel","Költségvetés","Tényleges","Különbözet",{"$nulls":4},"Tétel","Költségvetés","Tényleges","Különbözet"]
[null,null,"Repülőjegy",null,null,{"$f":"Utazás[[#This Row],[Költségvetés]]-Utazás[[#This Row],[Tényleges]]","v":{"v":0,"d":"0.00 Ft"}},{"$nulls":4},"Ünnepi fényképek",null,null,{"$f":"Egyéb[[#This Row],[Költségvetés]]-Egyéb[[#This Row],[Tényleges]]","v":{"v":0,"d":"0.00 Ft"}}]
[null,null,"Szállás",null,null,{"$f":"Utazás[[#This Row],[Költségvetés]]-Utazás[[#This Row],[Tényleges]]","v":{"v":0,"d":"0.00 Ft"}},{"$nulls":4},"Üzemanyag ",null,null,{"$f":"Egyéb[[#This Row],[Költségvetés]]-Egyéb[[#This Row],[Tényleges]]","v":{"v":0,"d":"0.00 Ft"}}]
[null,null,"Közlekedés",null,null,{"$f":"Utazás[[#This Row],[Költségvetés]]-Utazás[[#This Row],[Tényleges]]","v":{"v":0,"d":"0.00 Ft"}},{"$nulls":4},"Egyéb (új sor felvételéhez nyomja le a Tab billentyűt e sor utolsó oszlopában)",null,null,{"$f":"Egyéb[[#This Row],[Költségvetés]]-Egyéb[[#This Row],[Tényleges]]","v":{"v":0,"d":"0.00 Ft"}}]
[null,null,"Egyéb (új sor felvételéhez nyomja le a Tab billentyűt e sor utolsó oszlopában)",null,null,{"$f":"Utazás[[#This Row],[Költségvetés]]-Utazás[[#This Row],[Tényleges]]","v":{"v":0,"d":"0.00 Ft"}}]
[null,null,"Összeg",{"$f":"SUBTOTAL(109,Utazás[Költségvetés])","v":{"v":0,"d":"0.00 Ft"}},{"$f":"SUBTOTAL(109,Utazás[Tényleges])","v":{"v":0,"d":"0.00 Ft"}},{"$f":"SUBTOTAL(109,Utazás[Különbözet])","v":{"v":0,"d":"0.00 Ft"}},{"$nulls":4},"Összeg",{"$f":"SUBTOTAL(109,Egyéb[Költségvetés])","v":{"v":0,"d":"0.00 Ft"}},{"$f":"SUBTOTAL(109,Egyéb[Tényleges])","v":{"v":0,"d":"0.00 Ft"}},{"$f":"SUBTOTAL(109,Egyéb[Különbözet])","v":{"v":0,"d":"0.00 Ft"}}]